bitfinex-derivatives/quotes_SOLF0:USTF0_20250113
["timestamp","ask_amount","ask_price","bid_price","bid_amount"]
[1736739801522,7.2054351,185.57,185.53,2.6961]
[1736739801827,7.2054351,185.59,185.51,7.2054351]
[1736739802023,7.2054351,185.55,185.49,3.2806]
[1736739802222,7.2054351,185.55,185.49,1.6286]
[1736739802526,7.2054351,185.53,185.5,2.6966]
[1736739802723,7.2054351,185.53,185.46,7.2054351]
[1736739803229,7.2054351,185.53,185.48,2.6969]
[1736739804324,9.9016351,185.53,185.48,2.6969]
[1736739805123,7.2054351,185.53,185.49,2.6967]
[1736739806826,9.9016351,185.53,185.49,2.6967]
[1736739809223,9.9013351,185.56,185.48,7.2054351]
[1736739809524,7.2054351,185.56,185.48,7.2054351]
[1736739810621,2.696,185.54,185.49,2.6966]
[1736739810821,9.9014351,185.54,185.49,2.6966]
[1736739811027,7.2054351,185.54,185.48,7.2054351]
[1736739811828,7.2054351,185.54,185.5,2.6965]
[1736739814523,2.6959,185.55,185.51,2.6964]
[1736739815826,7.2054351,185.58,185.5,7.2054351]
[1736739816024,7.2054351,185.58,185.52,7.2054351]
[1736739816224,8.8543351,185.6,185.52,7.2054351]
[1736739817030,2.6953,185.59,185.55,2.6957]
[1736739817736,8.8543351,185.6,185.52,7.2054351]
[1736739817931,8.8543351,185.6,185.56,2.6956]
[1736739818831,11.5494351,185.6,185.56,2.6956]
[1736739819028,9.9005351,185.6,185.56,2.6956]
[1736739821433,7.2054351,185.6,185.57,2.6955]
[1736739824837,2.695,185.61,185.54,7.2054351]
[1736739825136,7.2054351,185.6,185.54,7.2054351]
[1736739826135,7.2054351,185.6,185.56,2.6956]
[1736739826535,2.695,185.61,185.54,7.2054351]
[1736739827137,7.2054351,185.62,185.54,7.2054351]
[1736739827335,1.5524,185.64,185.56,7.2054351]
[1736739827540,7.2054351,185.63,185.56,7.2054351]
[1736739827742,9.9001351,185.63,185.58,2.6954]
[1736739829835,9.9001351,185.63,185.58,2.6953]
[1736739833840,9.9001351,185.63,185.59,2.6953]
[1736739836943,2.6951,185.6,185.53,7.2054351]
[1736739837344,2.6951,185.6,185.56,2.6956]
[1736739837743,7.2054351,185.61,185.56,2.6956]
[1736739837945,9.9004351,185.61,185.56,2.6956]
[1736739838347,2.695,185.61,185.55,7.2054351]
[1736739838645,9.9004351,185.61,185.55,7.2054351]
[1736739839047,9.9004351,185.61,185.56,2.6956]
[1736739839448,2.6952,185.6,185.51,1.6466]
[1736739839648,7.2054351,185.61,185.55,2.6958]
[1736739840244,2.6952,185.6,185.56,2.6956]
[1736739843346,2.6953,185.59,185.53,7.2054351]
[1736739844550,7.2054351,185.61,185.53,7.2054351]
[1736739844850,2.6951,185.6,185.56,2.6957]
[1736739856056,1.5899,185.63,185.51,1.6466]
[1736739856057,7.2054351,185.59,185.51,1.6466]
[1736739856357,7.2054351,185.57,185.5,8.8003351]
[1736739856750,7.2054351,185.57,185.52,2.6962]
[1736739856751,9.9011351,185.57,185.52,2.6962]
[1736739858258,9.9011351,185.57,185.5,8.8003351]
[1736739858557,9.9011351,185.57,185.53,2.6961]
[1736739858758,9.9014351,185.55,185.49,1.637]
[1736739859354,9.9014351,185.55,185.5,2.6966]
[1736739859556,2.6961,185.54,185.5,2.6966]
[1736739863756,2.6964,185.52,185.47,2.697]
[1736739863961,2.6964,185.52,185.44,3.2748]
[1736739863962,7.2054351,185.51,185.46,7.2054351]
[1736739864158,7.2054351,185.53,185.46,7.2054351]
[1736739864562,7.2054351,185.53,185.49,2.6967]
[1736739865155,2.6958,185.56,185.52,2.6963]
[1736739865363,7.2054351,185.56,185.5,7.2054351]
[1736739866363,7.2054351,185.56,185.52,2.6963]
[1736739867363,2.6956,185.57,185.52,2.6963]
[1736739867957,2.6956,185.57,185.53,2.6961]
[1736739871664,194.0,185.68,185.54,7.2054351]
[1736739871870,194.0,185.68,185.56,7.2054351]
[1736739872166,8.7953351,185.63,185.56,7.2054351]
[1736739872762,2.695,185.62,185.58,2.6954]
[1736739872967,7.2054351,185.61,185.54,7.2054351]
[1736739873165,7.2054351,185.59,185.54,7.2054351]
[1736739873762,7.2054351,185.59,185.53,2.696]
[1736739875162,7.2054351,185.57,185.52,2.6963]
[1736739876058,2.6957,185.56,185.52,2.6963]
[1736739878568,2.6959,185.55,185.51,2.6964]
[1736739883575,2.6957,185.56,185.51,2.6964]
[1736739885765,2.6957,185.56,185.5,7.2054351]
[1736739885965,2.6957,185.56,185.52,2.6963]
[1736739889872,9.9015351,185.54,185.5,2.6966]
[1736739890076,7.2054351,185.54,185.46,46.38518372]
[1736739891080,2.6963,185.52,185.48,2.6969]
[1736739892681,2.6962,185.53,185.48,2.6969]
[1736739896180,2.6962,185.53,185.49,2.6967]
[1736739901682,7.2054351,185.5,185.46,39.17974862]
[1736739901885,7.2054351,185.5,185.44,1.6905]
[1736739902091,8.12979792,185.55,185.45,7.2054351]
[1736739902285,2.6962,185.53,185.49,2.6967]
[1736739903179,7.2054351,185.52,185.47,7.2054351]
[1736739903491,7.2054351,185.5,185.44,1.6905]
[1736739903891,9.9020351,185.5,185.46,2.6971]
[1736739905590,7.2054351,185.5,185.39,3.2591]
[1736739905890,8.12610629,185.55,185.41,7.2054351]
[1736739905891,7.2054351,185.48,185.41,7.2054351]
[1736739907196,2.6971,185.47,185.42,2.6976]
[1736739907388,2.6971,185.47,185.41,7.2054351]
[1736739907791,2.6977,185.43,185.38,4.3072]
[1736739909295,2.6978,185.42,185.38,1.6089]
[1736739909695,2.6978,185.42,185.34,1.6869]
[1736739909696,7.2054351,185.42,185.34,1.6869]
[1736739909890,7.2054351,185.42,185.34,8.8923351]
[1736739910198,2.6981,185.4,185.35,2.6987]
[1736739910494,9.9035351,185.4,185.35,2.6987]
[1736739910998,2.6983,185.39,185.33,2.699]
[1736739911401,9.9033351,185.41,185.36,2.6986]
[1736739911593,7.2054351,185.41,185.31,1.6086]
[1736739911794,7.2054351,185.41,185.33,7.2054351]
[1736739912089,7.2054351,185.37,185.31,1.6086]
[1736739912295,7.2054351,185.37,185.29,1.6374]
[1736739912490,7.2054351,185.35,185.25,62.88875721]
[1736739912694,7.2054351,185.35,185.28,7.2054351]
[1736739913297,2.6989,185.34,185.28,2.6998]
[1736739913498,7.2054351,185.33,185.28,2.6998]
[1736739914296,9.9045351,185.33,185.27,10.87930996]
[1736739914498,9.9045351,185.33,185.27,18.08474506]
[1736739915698,2.6992,185.32,185.27,2.6999]
[1736739915997,7.2054351,185.31,185.25,72.79429231]
[1736739916494,7.2054351,185.29,185.14,7.44117084]
[1736739916692,7.2054351,185.27,185.2,7.2054351]
[1736739916889,7.2054351,185.25,185.2,7.2054351]
[1736739917090,9.9056351,185.25,185.2,2.7008]
[1736739917399,9.9056351,185.25,185.18,7.2054351]
[1736739917899,2.7004,185.24,185.15,3.2038]
[1736739918098,7.2054351,185.23,185.17,7.2054351]
[1736739918400,9.9062351,185.21,185.15,10.4092351]
[1736739918596,9.9062351,185.21,185.15,8.8087351]
[1736739919401,7.2054351,185.21,185.15,8.8087351]
[1736739919598,7.2054351,185.21,185.17,2.7013]
[1736739919999,7.2054351,185.23,185.17,7.2054351]
[1736739920198,9.9059351,185.23,185.17,7.2054351]
[1736739920596,7.2054351,185.21,185.16,2.7014]
[1736739920799,9.9062351,185.21,185.15,11.5104351]
[1736739920992,7.2054351,185.19,185.13,7.2054351]
[1736739921197,1.6215,185.24,185.15,7.2054351]
[1736739921399,7.2054351,185.21,185.15,7.2054351]
[1736739922204,7.2054351,185.19,185.07,1.5964]
[1736739922401,7.2054351,185.19,185.13,7.2054351]
[1736739922903,2.7013,185.18,185.13,7.2054351]
[1736739923495,2.7013,185.18,185.12,2.7021]
[1736739923700,9.9067351,185.18,185.12,2.7021]
[1736739924499,9.9069351,185.16,185.1,2.7024]
[1736739925105,7.2054351,185.14,185.09,9.9079351]
[1736739925300,7.2054351,185.14,185.07,8.8018351]
[1736739925500,5.58,185.18,185.07,1.5964]
[1736739925501,7.2054351,185.12,185.07,1.5964]
[1736739925701,9.9075351,185.12,185.07,1.5964]
[1736739925909,9.9075351,185.12,185.06,2.7029]
[1736739927204,7.2054351,185.08,184.99,4.7754]
[1736739927401,7.2054351,185.08,184.98,95.67449865]
[1736739927600,7.2054351,185.06,185.01,2.7037]
[1736739928305,7.2054351,185.04,184.92,4.8765]
[1736739928500,7.2054351,185.02,184.93,0.99369855]
[1736739928709,7.2054351,185.02,184.95,7.2054351]
[1736739929004,7.2054351,185.02,184.92,4.8765]
[1736739929210,7.2054351,185.0,184.93,0.99385688]
[1736739929402,9.38197361,185.11,184.93,3.69865688]
[1736739929403,7.2054351,184.98,184.93,3.69865688]
[1736739929605,7.2054351,184.96,184.89,7.2054351]
[1736739929811,7.2054351,184.96,184.9,0.99399857]
[1736739930011,7.2054351,184.96,184.91,2.7052]
[1736739930206,7.2054351,184.96,184.85,5.001]
[1736739930511,7.2054351,184.92,184.86,0.99401368]
[1736739930713,7.2054351,184.92,184.87,0.99401368]
[1736739931012,7.2054351,184.92,184.88,0.99401368]
[1736739931212,7.2054351,184.92,184.85,12.2064351]
[1736739931406,2.705,184.92,184.86,0.99424808]
[1736739931710,11.38289967,184.94,184.85,3.3387]
[1736739932306,11.38289967,184.94,184.85,6.0447]
[1736739933013,5.58,184.93,184.74,11.38289967]
[1736739933314,11.38289967,184.89,184.78,1.6879]
[1736739933709,11.38289967,184.86,184.76,3.1851]
[1736739934013,14.08929967,184.83,184.76,3.1851]
[1736739934401,11.38289967,184.83,184.76,3.1851]
[1736739935408,2.7065,184.82,184.76,1.5573]
[1736739935618,11.38289967,184.83,184.71,13.07079967]
[1736739935813,11.38289967,184.83,184.72,0.99494085]
[1736739936204,11.38289967,184.8,184.72,0.99494085]
[1736739936405,11.38289967,184.8,184.68,3.1466]
[1736739936606,11.38289967,184.77,184.68,1.6069]
[1736739937615,2.7077,184.74,184.68,1.6069]
[1736739938114,14.09059967,184.74,184.68,1.6069]
[1736739938315,11.38289967,184.74,184.68,1.6069]
[1736739938616,11.38289967,184.77,184.69,2.7084]
[1736739939014,2.7074,184.76,184.68,1.6069]
[1736739939211,11.38289967,184.74,184.63,11.38289967]
[1736739939520,14.09109967,184.71,184.62,1.6559]
[1736739939818,11.38289967,184.71,184.62,4.3652]
[1736739940224,11.38289967,184.68,184.62,4.3652]
[1736739940516,11.38289967,184.68,184.57,11.38289967]
[1736739941013,11.38289967,184.68,184.58,0.99579894]
[1736739941219,11.38289967,184.68,184.59,0.99579894]
[1736739941514,19.71109967,184.71,184.63,2.7092]
[1736739941818,11.38289967,184.71,184.61,1.6176]
[1736739942018,5.62,184.73,184.63,11.38289967]
[1736739942517,5.62,184.73,184.64,0.99560277]
[1736739942923,2.708,184.72,184.62,1.6274]
[1736739943124,11.38289967,184.71,184.63,0.99562113]
[1736739943315,11.38289967,184.68,184.61,3.1922]
[1736739943515,2.7088,184.67,184.61,3.1922]
[1736739943916,11.38289967,184.68,184.62,0.99574109]
[1736739944117,11.38289967,184.68,184.62,2.7094]
[1736739944316,11.38289967,184.71,184.62,2.7094]
[1736739944524,11.38289967,184.71,184.61,1.6176]
[1736739944718,2.7086,184.68,184.61,4.3272]
[1736739945021,11.38289967,184.71,184.62,0.9957455]
[1736739945225,2.7084,184.69,184.62,2.7094]
[1736739945521,17.02289967,184.71,184.61,1.6176]
[1736739945722,17.02289967,184.71,184.62,0.99574241]
[1736739945923,17.02289967,184.71,184.63,0.99566457]
[1736739946119,17.02289967,184.74,184.64,0.99564616]
[1736739946316,17.02289967,184.74,184.65,0.99564616]
[1736739946522,19.73059967,184.74,184.66,2.7087]
[1736739946724,11.38289967,184.74,184.63,11.38289967]
[1736739946922,11.38289967,184.74,184.64,0.99559541]
[1736739947122,11.38289967,184.74,184.68,2.7084]
[1736739947531,11.38289967,184.74,184.63,11.38289967]
[1736739947729,11.38289967,184.71,184.64,0.99552653]
[1736739947929,11.38289967,184.71,184.61,1.6176]
[1736739948226,11.38289967,184.71,184.62,0.99565807]
[1736739948426,11.38289967,184.71,184.63,0.99565807]
[1736739948628,11.38289967,184.71,184.61,1.6176]
[1736739948828,11.38289967,184.71,184.62,0.99567154]
[1736739949028,17.02289967,184.77,184.61,1.6176]
[1736739949029,11.38289967,184.68,184.61,1.6176]
[1736739949224,11.38289967,184.68,184.58,1.6558]
[1736739949427,18.26641631,184.68,184.59,0.99579649]
[1736739949728,21.42191631,184.68,184.6,0.99579649]
[1736739949927,2.7088,184.67,184.58,1.6558]
[1736739950129,2.7088,184.67,184.59,0.99581192]
[1736739950322,21.42191631,184.68,184.6,0.99581192]
[1736739950527,21.42191631,184.68,184.58,1.6558]
[1736739951122,2.709,184.65,184.59,0.99588014]
[1736739951327,2.709,184.65,184.58,4.3657]
[1736739951328,2.709,184.65,184.58,2.7099]
[1736739951527,2.709,184.65,184.52,18.26641631]
[1736739951528,18.26641631,184.65,184.53,1.5449]
[1736739951829,18.26641631,184.65,184.54,0.99605092]
[1736739952029,18.26641631,184.65,184.55,0.99605092]
[1736739952223,18.26641631,184.65,184.53,1.5449]
[1736739952422,18.26641631,184.65,184.54,0.9960988]
[1736739952624,18.26641631,184.65,184.53,1.5449]
[1736739952826,18.26641631,184.65,184.54,0.99611686]
[1736739953124,21.42191631,184.68,184.55,0.99610281]
[1736739953327,21.42191631,184.68,184.56,0.99602355]
[1736739953529,2.709,184.65,184.57,3.70611301]
[1736739953829,3.1555,184.68,184.55,18.26641631]
[1736739954029,3.1555,184.68,184.56,0.99599522]
[1736739954228,23.92641631,184.74,184.58,18.26641631]
[1736739954532,5.66,184.73,184.59,2.66144079]
[1736739954727,1.5683,184.76,184.61,18.26641631]
[1736739955028,1.5683,184.76,184.64,18.26641631]
[1736739955232,1.5683,184.76,184.65,0.99564079]
[1736739955430,1.5683,184.76,184.66,0.99564079]
[1736739955628,1.5683,184.76,184.67,0.99564079]
[1736739955824,1.5683,184.76,184.7,2.7082]
[1736739956826,1.5683,184.76,184.68,2.7084]
[1736739957029,1.5683,184.76,184.62,1.6145]
[1736739957229,18.26641631,184.74,184.63,0.99551109]
[1736739957530,18.26641631,184.74,184.66,2.7088]
[1736739957933,2.708,184.72,184.62,1.6145]
[1736739958129,18.26641631,184.74,184.67,2.7087]
[1736739958429,4.2757,184.76,184.68,0.99538978]
[1736739958726,1.5683,184.76,184.62,1.6145]
[1736739958928,1.5683,184.76,184.63,0.99545292]
[1736739959134,1.5683,184.76,184.64,0.99554745]
[1736739959333,1.5683,184.76,184.65,0.99554745]
[1736739959533,1.5683,184.76,184.66,0.99554745]
[1736739959728,1.5683,184.76,184.67,0.99554745]
[1736739959927,1.5683,184.76,184.69,2.7083]
[1736739960538,1.5683,184.76,184.71,2.7081]
[1736739961238,5.66,184.78,184.62,1.6145]
[1736739961535,18.26641631,184.8,184.63,0.99528818]
[1736739961726,18.26641631,184.8,184.75,2.7075]
[1736739961926,1.5707,184.81,184.66,18.26641631]
[1736739962131,1.5707,184.81,184.67,2.5916359]
[1736739962434,4.2774,184.81,184.68,0.9952359]
[1736739962634,2.7067,184.81,184.69,0.9952359]
[1736739962836,2.707,184.79,184.73,2.7078]
[1736739963133,18.26641631,184.8,184.68,1.588]
[1736739963335,2.708,184.72,184.67,1.5964]
[1736739963531,2.708,184.72,184.66,2.7088]
[1736739963942,2.7081,184.71,184.66,2.7088]
[1736739964437,5.68,184.74,184.6,3.1844]
[1736739964638,8.3877,184.74,184.6,3.1844]
[1736739964935,8.3877,184.74,184.63,0.99552731]
[1736739965144,2.7079,184.73,184.6,3.1844]
[1736739965334,2.7079,184.73,184.63,0.99556899]
[1736739965540,5.68,184.74,184.64,0.99556899]
[1736739965740,2.7082,184.71,184.63,0.99562615]
[1736739965940,5.68,184.74,184.64,0.99561533]
[1736739966139,5.68,184.74,184.6,3.1844]
[1736739966342,5.68,184.74,184.63,0.99560508]
[1736739966540,5.68,184.74,184.6,3.1844]
[1736739966541,5.68,184.74,184.64,0.99560508]
[1736739966837,23.94641631,184.74,184.6,3.1844]
[1736739967035,1.5296,184.73,184.6,3.1844]
[1736739967236,3.2013,184.73,184.6,3.1844]
[1736739967532,18.26641631,184.71,184.61,0.99564649]
[1736739967837,18.26641631,184.71,184.61,2.7096]
[1736739967838,2.7088,184.67,184.61,2.7096]
[1736739968042,18.26641631,184.71,184.56,1.6807]
[1736739968243,18.26641631,184.71,184.57,0.99584292]
[1736739968436,18.26641631,184.71,184.58,0.99584292]
[1736739968739,18.26641631,184.71,184.59,0.99584292]
[1736739968942,18.26641631,184.71,184.56,1.6807]
[1736739969143,18.26641631,184.68,184.57,0.99588151]
[1736739969437,18.26641631,184.68,184.55,1.6519]
[1736739971339,18.26641631,184.65,184.55,1.6519]
[1736739971537,2.7092,184.64,184.59,2.7099]
[1736739971738,2.7092,184.64,184.55,1.6519]
[1736739971934,1.5914,184.64,184.55,1.6519]
[1736739972642,2.7093,184.63,184.58,2.71]
[1736739972837,1.5914,184.64,184.55,1.6519]
[1736739973033,4.3006,184.64,184.57,2.7101]
[1736739973235,1.5914,184.64,184.55,1.6519]
[1736739974434,1.5914,184.64,184.59,2.7099]
[1736739974640,5.72,184.65,184.55,1.6519]
[1736739975240,5.72,184.65,184.61,2.7095]
[1736739975638,5.72,184.65,184.55,1.6519]
[1736739976748,5.72,184.65,184.52,9.12494772]
[1736739976943,1.6967,184.64,184.52,9.12494772]
[1736739977247,1.6967,184.64,184.57,2.7101]
[1736739977248,2.7093,184.64,184.57,2.7101]
[1736739977445,5.72,184.65,184.53,18.26641631]
[1736739977654,5.72,184.65,184.54,0.99590717]
[1736739977843,5.72,184.65,184.61,2.7094]
[1736739978347,2.7095,184.62,184.57,2.71]
[1736739978550,2.7095,184.62,184.52,9.12494772]
[1736739978749,23.98641631,184.65,184.52,9.12494772]
[1736739979452,23.98641631,184.65,184.52,1.6807]
[1736739982150,2.7097,184.61,184.55,2.7103]
[1736739982343,2.7097,184.61,184.52,1.6807]
[1736739982544,2.7097,184.61,184.54,2.7105]
[1736739982749,2.7097,184.61,184.49,19.81621631]
[1736739982950,2.7097,184.61,184.5,0.99613208]
[1736739983149,18.26641631,184.62,184.54,2.7106]
[1736739983446,1.6867,184.61,184.49,1.5498]
[1736739983647,18.26641631,184.59,184.5,0.99617737]
[1736739983844,18.26641631,184.59,184.49,2.7112]
[1736739984054,18.26641631,184.59,184.48,29.7769909]
[1736739984249,1.5773,184.6,184.55,2.7104]
[1736739984656,1.5773,184.6,184.46,18.26641631]
[1736739985153,1.5773,184.6,184.55,2.7104]
[1736739985643,4.3964,184.61,184.46,18.26641631]
[1736739985848,1.6867,184.61,184.49,18.26641631]
[1736739986154,24.04641631,184.65,184.5,0.99617118]
[1736739986351,2.7094,184.63,184.57,2.7101]
[1736739986553,18.26641631,184.62,184.47,13.22424772]
[1736739987348,18.26641631,184.62,184.47,5.78]
[1736739987753,2.7099,184.6,184.54,2.7105]
[1736739987955,18.26641631,184.62,184.54,2.7105]
[1736739988154,2.7102,184.57,184.49,2.7113]
[1736739988357,18.26641631,184.59,184.44,1.639]
[1736739988546,18.26641631,184.56,184.44,1.639]
[1736739988751,2.7109,184.52,184.47,2.7116]
[1736739989650,24.08641631,184.56,184.44,1.639]
[1736739989855,24.08641631,184.56,184.41,29.7769909]
[1736739990255,2.7106,184.54,184.44,2.712]
[1736739990457,24.08641631,184.56,184.4,21.45211631]
[1736739990850,2.7108,184.53,184.47,2.7116]
[1736739991059,24.08641631,184.56,184.4,21.45211631]
[1736739991560,5.82,184.56,184.43,18.26641631]
[1736739991760,3.2818,184.58,184.46,18.26641631]
[1736739992061,1.6263,184.58,184.46,18.26641631]
[1736739992651,1.6263,184.58,184.53,2.7107]
[1736739992955,1.6263,184.58,184.41,18.26641631]
[1736739993460,18.26641631,184.56,184.4,3.1857]
[1736739993758,18.26641631,184.53,184.45,2.7118]
[1736739994060,24.10641631,184.53,184.45,2.7118]
[1736739994455,2.7112,184.5,184.45,2.7118]
[1736739994664,2.7112,184.5,184.4,3.1857]
[1736739996367,2.7112,184.5,184.44,2.7121]
[1736739996869,2.7114,184.49,184.44,2.7121]
[1736739997067,24.10641631,184.53,184.44,2.7121]
[1736739997269,24.10641631,184.53,184.4,3.1857]
[1736739997473,2.711,184.52,184.4,3.1857]
[1736739997860,24.10641631,184.53,184.45,2.7119]
[1736739998059,24.10641631,184.53,184.4,3.1857]
[1736739998263,5.84,184.53,184.49,2.7113]
[1736739998464,9.40864547,184.54,184.41,24.10641631]
[1736739998660,9.40864547,184.54,184.44,18.26641631]
[1736739999073,9.40864547,184.54,184.53,2.7108]
[1736739999272,9.40864547,184.54,184.44,18.26641631]
[1736739999768,9.40864547,184.54,184.53,2.7108]
[1736740002373,18.26641631,184.65,184.59,2.7098]
[1736740002670,20.97461631,184.71,184.56,18.26641631]
[1736740002869,18.26641631,184.71,184.64,2.709]
[1736740003076,3.1847,184.73,184.56,18.26641631]
[1736740003377,2.708,184.72,184.61,2.7096]
[1736740003569,0.28129,184.74,184.62,18.26641631]
[1736740003770,0.28129,184.74,184.63,3.0951]
[1736740003976,0.28129,184.74,184.72,2.708]
[1736740004281,0.28129,184.74,184.65,18.26641631]
[1736740004672,0.28129,184.74,184.73,2.7078]
[1736740005273,1e-08,184.74,184.73,2.7078]
[1736740007975,18.26641631,184.89,184.73,5.84]
[1736740008175,1.595,184.91,184.75,18.26641631]
[1736740008479,1.595,184.91,184.78,18.26641631]
[1736740008975,5.84,184.93,184.78,18.26641631]
[1736740009280,3.2101,185.03,184.84,18.26641631]
[1736740009281,18.26641631,184.98,184.84,18.26641631]
[1736740009482,2.7039,185.0,184.92,2.705]
[1736740009675,2.7039,185.0,184.85,4.7942]
[1736740010074,2.7039,185.0,184.91,2.7051]
[1736740010274,24.10641631,185.01,184.85,4.7942]
[1736740010971,18.26641631,184.98,184.85,4.7942]
[1736740011575,20.97071631,184.98,184.87,2.7056]
[1736740011881,18.26641631,184.98,184.85,4.7942]
[1736740012076,2.705,184.93,184.85,1.6053]
[1736740012285,2.705,184.93,184.78,3.1815]
[1736740012585,18.26641631,184.92,184.84,2.7062]
[1736740012979,18.26641631,184.92,184.78,4.7546]
[1736740013176,19.94571631,184.92,184.78,4.7546]
[1736740013376,19.94571631,184.92,184.8,2.7067]
[1736740013883,2.7054,184.9,184.81,2.7066]
[1736740014078,18.26641631,184.89,184.74,18.26641631]
[1736740014282,18.26641631,184.89,184.71,18.26641631]
[1736740014479,2.7061,184.85,184.76,2.7073]
[1736740015080,2.7061,184.85,184.77,2.7072]
[1736740015381,2.7059,184.87,184.77,2.7072]
[1736740015581,2.7059,184.87,184.78,2.7071]
[1736740015779,18.26641631,184.86,184.71,18.26641631]
[1736740015985,18.26641631,184.86,184.69,4.7609]
[1736740015986,2.7064,184.83,184.69,10.6209]
[1736740016178,2.7064,184.83,184.7,0.99499023]
[1736740016379,2.7064,184.83,184.73,2.7077]
[1736740016574,18.26641631,184.83,184.69,4.7609]
[1736740016787,3.2335,184.82,184.69,4.7609]
[1736740017686,2.7071,184.78,184.69,4.7609]
[1736740018186,2.7074,184.76,184.68,2.7084]
[1736740018381,18.26641631,184.8,184.65,18.26641631]
[1736740018585,18.26641631,184.8,184.65,19.87391631]
[1736740018786,20.97331631,184.8,184.72,2.708]
[1736740018985,3.2335,184.82,184.65,19.87391631]
[1736740019186,3.2335,184.82,184.77,2.7071]
[1736740019387,7.538,184.85,184.71,18.26641631]
[1736740019788,2.7064,184.83,184.75,2.7075]
[1736740020088,7.538,184.85,184.71,18.26641631]
[1736740020391,7.538,184.85,184.68,18.26641631]
[1736740020392,2.7062,184.84,184.68,18.26641631]
[1736740020591,7.538,184.85,184.69,0.99511843]
[1736740020794,18.26641631,184.83,184.74,2.7076]
[1736740021587,2.7066,184.82,184.75,2.7075]
[1736740022090,18.26641631,184.83,184.68,18.26641631]
[1736740022491,7.538,184.85,184.68,18.26641631]
[1736740022688,2.7068,184.8,184.65,19.87391631]
[1736740022888,20.97321631,184.8,184.66,0.99520808]
[1736740023189,18.26641631,184.8,184.73,2.7078]
[1736740023491,18.26641631,184.83,184.68,18.26641631]
[1736740023994,18.26641631,184.83,184.65,19.87391631]
[1736740024296,18.26641631,184.8,184.65,1.6075]
[1736740024495,2.7075,184.75,184.67,2.7086]
[1736740024794,18.26641631,184.77,184.67,2.7086]
[1736740024993,24.14641631,184.77,184.67,2.7086]
[1736740025295,2.7078,184.73,184.66,2.7088]
[1736740025793,2.7084,184.69,184.62,2.7094]
[1736740026095,18.26641631,184.65,184.54,1.5413]
[1736740026295,18.26641631,184.65,184.51,3.28]
[1736740026488,18.26641631,184.62,184.51,3.28]
[1736740027096,2.7096,184.61,184.54,2.7105]
[1736740027397,18.26641631,184.62,184.51,1.6342]
[1736740029400,29.69391182,184.64,184.51,1.6342]
[1736740029600,29.69391182,184.61,184.49,1.5955]
[1736740030195,2.7097,184.6,184.53,2.7106]
[1736740030392,2.7097,184.6,184.46,7.431]
[1736740030590,2.7097,184.6,184.47,0.99623912]
[1736740031001,29.69391182,184.61,184.47,0.99623912]
[1736740031901,2.7099,184.59,184.46,1.531]
[1736740032101,29.69391182,184.61,184.47,0.99624138]
[1736740032298,35.59391182,184.61,184.47,0.99624138]
[1736740033003,2.7097,184.6,184.53,2.7107]
[1736740033805,29.69391182,184.61,184.46,1.6937]
[1736740034001,1.5501,184.67,184.46,1.6937]
[1736740034002,2.7095,184.62,184.55,2.7104]
[1736740034502,29.69391182,184.61,184.52,2.7108]
[1736740034704,29.69391182,184.61,184.46,1.6937]
[1736740034897,29.69391182,184.61,184.47,0.99624154]
[1736740035293,29.69391182,184.58,184.42,32.97761182]
[1736740035499,29.69391182,184.55,184.43,0.99638608]
[1736740035803,29.69391182,184.55,184.49,2.7113]
[1736740036003,4.7866,184.57,184.42,32.97761182]
[1736740036204,4.7866,184.57,184.43,0.99640047]
[1736740036402,4.7866,184.57,184.49,2.7113]
[1736740036795,29.69391182,184.55,184.42,1.6244]
[1736740037103,29.69391182,184.52,184.45,2.7119]
[1736740037403,2.7108,184.53,184.46,2.7118]
[1736740037795,35.59391182,184.55,184.46,2.7118]
[1736740038103,29.69391182,184.52,184.43,2.7121]
[1736740038305,29.69391182,184.49,184.33,32.99041182]
[1736740038494,2.7118,184.47,184.4,2.7125]
[1736740038803,1.6752,184.46,184.33,32.99041182]
[1736740039104,3.2665,184.46,184.41,2.7125]
[1736740039307,3.2665,184.46,184.33,32.99041182]
[1736740039500,3.2665,184.46,184.34,0.99682647]
[1736740039697,3.2665,184.46,184.4,2.7126]
[1736740040203,3.2665,184.46,184.39,2.7127]
[1736740040204,5.9783,184.46,184.39,2.7127]